Workbook

Sheet Warning (hidden)

Sheet Ridership Report
C9: =SalesReport!P24 -> 276 | L9: =C9/COUNTA(B13:J28) ->  | T9: =IF(P61=1,C9/7,IF(P61=2,C9/8,IF(P61=3,C9/11,IF(P61=4,C9/14)))) -> 39.42857143
B12: Name | I12: Pass #'s | L12: Totals | N12: 1 | O12: 2 | P12: 3 | Q12: 4 | R12: 5 | S12: 6 | T12: 7 | U12: 8 | V12: 9 | W12: 10 | X12: 11 | Y12: 12 | Z12: 13 | AA12: 14 | AB12: 15 | AC12: 16 | AD12: 17 | AE12: 18 | AF12: 19 | AG12: 20 | AH12: 21 | AI12: 22 | AJ12: 23 | AK12: 24 | AL12: 25 | AM12: 26 | AN12: 27 | AO12: 28 | AP12: 29 | AQ12: 30 | AR12: 31 | AS12: *
A13: 1 | L13: =SUM(C56:L56) -> 0 | AS13: =(COUNTIF(N13:AR13,"DR")*2) + COUNTIF(N13:AR13,"D") + COUNTIF(N13:AR13,"HD") -> 0
A14: 2 | L14: 0 | AS14: =(COUNTIF(N14:AR14,"DR")*2) + COUNTIF(N14:AR14,"D") + COUNTIF(N14:AR14,"HD") -> 0
A15: 3 | L15: 0 | AS15: 0
A16: 4 | L16: 0 | AS16: 0
A17: 5 | L17: 0 | AS17: 0
A18: 6 | L18: 0 | AS18: 0
A19: 7 | L19: 0 | AS19: 0
A20: 8 | L20: 0 | AS20: 0
A21: 9 | L21: 0 | AS21: 0
A22: 10 | L22: 0 | AS22: 0
A23: 11 | L23: 0 | AS23: 0
A24: 12 | L24: 0 | AS24: 0
A25: 13 | L25: 0 | AS25: 0
A26: 14 | L26: 0 | AS26: 0
A27: 15 | L27: 0 | AS27: 0
A28: 16 | L28: 0 | AS28: 0
B29: Daily Rider Counts >> | N29: =COUNTIFS(N13:N28,"DR")+COUNTIFS(N13:N28,"D")+COUNTIFS(N13:N28,"HD")+COUNTIFS(N13:N28,"X")+COUNTIFS(N13:N28,"\") -> 0 | O29: =COUNTIFS(O13:O28,"DR")+COUNTIFS(O13:O28,"D")+COUNTIFS(O13:O28,"HD")+COUNTIFS(O13:O28,"X")+COUNTIFS(O13:O28,"\") -> 0 | P29: =COUNTIFS(P13:P28,"DR")+COUNTIFS(P13:P28,"D")+COUNTIFS(P13:P28,"HD")+COUNTIFS(P13:P28,"X")+COUNTIFS(P13:P28,"\") -> 0 | Q29: 0 | R29: 0 | S29: 0 | T29: 0 | U29: 0 | V29: 0 | W29: 0 | X29: 0 | Y29: 0 | Z29: 0 | AA29: 0 | AB29: 0 | AC29: 0 | AD29: 0 | AE29: 0 | AF29: 0 | AG29: 0 | AH29: 0 | AI29: 0 | AJ29: 0 | AK29: 0 | AL29: 0 | AM29: 0 | AN29: 0 | AO29: 0 | AP29: 0 | AQ29: 0 | AR29: 0 | AS29: =COUNTIF(N29:AR29,">"&0) -> 0
AG32: =SalesReport!H19 -> 0 | AL32: =SUM((T58*2)+T56)+SUM(T62*2)+T60+SUM(T64*2) -> 0
F37: 1) | P37: 2) | Z37: 3) | AJ37: 4)
F39: 5) | P39: 6) | Z39: 7) | AJ39: 8)
F41: 9) | P41: 10) | Z41: 11) | AJ41: 12)
F43: 13) | P43: 14) | Z43: 15) | AJ43: 16)
N54: =COUNTA(N13:N28) -> 0 | O54: =COUNTA(O13:O28) -> 0 | P54: 0 | Q54: 0 | R54: 0 | S54: 0 | T54: 0 | U54: 0 | V54: 0 | W54: 0 | X54: 0 | Y54: 0 | Z54: 0 | AA54: 0 | AB54: 0 | AC54: 0 | AD54: 0 | AE54: 0 | AF54: 0 | AG54: 0 | AH54: 0 | AI54: 0 | AJ54: 0 | AK54: 0 | AL54: 0 | AM54: 0 | AN54: 0 | AO54: 0 | AP54: 0 | AQ54: 0 | AR54: 0
C55: d | E55: dr | G55: hd | I55: \ | K55: x
C56: =COUNTIF(N13:AR13,"d") -> 0 | E56: =COUNTIF(N13:AR13,"dr")*2 -> 0 | G56: =COUNTIF(N13:AR13,"hd")*2 -> 0 | I56: =COUNTIF(N13:AR13,"\") -> 0 | K56: =COUNTIF(N13:AR13,"x")*2 -> 0 | P56: 7-psg | T56: =COUNTIF(N13:AR28,"\") -> 0 | X56: =COUNTA(N13:AR13) -> 0 | AG56: =COUNTIF(N13:AR13,"\") -> 0 | AK56: FALSE | AM56: FALSE | AN56: FALSE | AQ56: Aug'18
C57: =COUNTIF(N14:AR14,"d") -> 0 | E57: =COUNTIF(N14:AR14,"dr")*2 -> 0 | G57: =COUNTIF(N14:AR14,"hd")*2 -> 0 | I57: =COUNTIF(N14:AR14,"\") -> 0 | K57: =COUNTIF(N14:AR14,"x")*2 -> 0 | P57: 8-psg | X57: =COUNTA(N14:AR14) -> 0 | AK57: FALSE | AM57: FALSE | AQ57: Sept'18
C58: 0 | E58: 0 | G58: 0 | I58: 0 | K58: 0 | P58: 11-psg | T58: =COUNTIF(N13:AR28,"X") -> 0 | X58: 0 | AK58: FALSE | AM58: FALSE | AQ58: Oct'18
C59: 0 | E59: 0 | G59: 0 | I59: 0 | K59: 0 | P59: 14-psg | X59: 0 | AA59: =COUNTIF(N54:AR54,"<>0") -> 0 | AK59: FALSE | AM59: FALSE | AQ59: Nov'18
C60: 0 | E60: 0 | G60: 0 | I60: 0 | K60: 0 | T60: =COUNTIF(N13:AR28,"D") -> 0 | X60: 0 | AK60: FALSE | AM60: FALSE | AQ60: Dec'18
C61: 0 | E61: 0 | G61: 0 | I61: 0 | K61: 0 | P61: 1 | X61: 0 | AK61: FALSE | AM61: FALSE | AQ61: Jan'19
C62: 0 | E62: 0 | G62: 0 | I62: 0 | K62: 0 | T62: =COUNTIF(N13:AR28,"DR") -> 0 | X62: 0 | AK62: FALSE | AM62: FALSE | AQ62: Feb'19
C63: 0 | E63: 0 | G63: 0 | I63: 0 | K63: 0 | X63: 0 | AK63: FALSE | AM63: FALSE | AQ63: Mar'19
C64: 0 | E64: 0 | G64: 0 | I64: 0 | K64: 0 | T64: =COUNTIF(N13:AR28,"HD") -> 0 | X64: 0 | AK64: FALSE | AM64: FALSE | AQ64: Apr'19
C65: 0 | E65: 0 | G65: 0 | I65: 0 | K65: 0 | X65: 0 | AK65: FALSE | AM65: FALSE | AQ65: May'19
C66: 0 | E66: 0 | G66: 0 | I66: 0 | K66: 0 | T66: =COUNTIF(N13:AR28,"HD") -> 0 | X66: 0 | AK66: FALSE | AM66: FALSE | AQ66: Jun'19
C67: 0 | E67: 0 | G67: 0 | I67: 0 | K67: 0 | X67: 0 | AK67: FALSE | AM67: FALSE
C68: 0 | E68: 0 | G68: 0 | I68: 0 | K68: 0 | X68: 0 | AK68: FALSE | AM68: FALSE
C69: 0 | E69: 0 | G69: 0 | I69: 0 | K69: 0 | X69: 0 | AK69: FALSE | AM69: FALSE
C70: 0 | E70: 0 | G70: 0 | I70: 0 | K70: 0 | X70: 0 | AK70: FALSE | AM70: FALSE
C71: 0 | E71: 0 | G71: 0 | I71: 0 | K71: 0 | X71: 0 | AK71: FALSE | AM71: FALSE
S73: =IF(P61=1,B9/8,IF(P61=2,B9/11,IF(P61=3,B9/14))) -> 0

Sheet SalesReport
A1: 8.22.18 | O1: KT Coordinator
K2: Narrows Bridge Transponders | O2: Tommy
O3: Dee
O4: Lindsay
A7: ACTUAL MILEAGE (Commute mileage with primary or spare van) | J7: CALCULATION FOR ALLOWABLE MILEAGE | P7: FALSE
A8: Van # | B8: Start Date | C8: End Date | D8: End Miles | E8: - | F8: Start Miles | G8: = | H8: Totals
E9: - | G9: = | H9: =SUM(D9-F9) -> 0 | I9: Daily Round Trip Miles (RTM's) | N9: 20
E10: - | G10: = | H10: 0 | J10: Working Days Last Month =
E11: - | G11: = | H11: 0 | J11: Bonus Miles (unplanned deviations only)
E12: - | G12: = | H12: 0 | J12: TOTAL ALLOWABLE MILES = | N12: =(N9*N10)+N11 -> 0
E13: - | G13: = | H13: 0
E14: - | G14: = | H14: 0 | K14: TOTAL ACTUAL MILES= | N14: =TRANSPOSE(F47) -> 0
E15: - | G15: = | H15: 0 | K15: Miles Over Allowable= | N15: =IF(H47<0,"",H47) -> 0 | P15: 5day
E16: - | G16: = | H16: 0 | I16: CHARGES FOR MILES OVER ALLOWABLE= | N16: =IF(H47>0,N15*0.54,"") -> 
E17: - | G17: = | H17: 0
E18: - | G18: = | H18: 0
D19: Total Actual Mileages All Vans | H19: =SUM(H9:H18) -> 0 | N19: CHARGES
B20: NON-COMMUTE MILEAGE (trade-outs, etc.) | I20: VAN WASH | L20: Transponder Surcharge = | P20: =IF(AND(P7,P15="5day"),105, IF(AND(P7,P15="4day"),80,IF(AND(P7,P15="6day"),120,IF(AND(P7,P15="7day"),150,0)))) -> 0
A21: Van # | B21: Start Date | C21: End Date | D21: End Miles | E21: - | F21: Start Miles | G21: = | H21: Totals | I21: Date | J21: Location | M21: Monthly Fixed Fare= | P21: =D54 -> 276
E22: - | G22: = | H22: =SUM(D22-F22) -> 0 | L22: Miles Over Allowable Charge= | P22: =TRANSPOSE(N16) -> 
E23: - | G23: = | H23: 0 | L23: Late Fee (if postmarked after the 9th)=
E24: - | G24: = | H24: 0 | M24: TOTAL CHARGES= | P24: =SUM(P20,P21:P23) -> 276
E25: - | G25: = | H25: 0 | I25: Comments | M25: TOTAL DEDUCTIONS= | P25: =TRANSPOSE(H44) -> 0
E26: - | G26: = | H26: 0 | L26: TOTAL AMOUNT DUE= | P26: =(P24-H44) -> 276
E27: - | G27: = | H27: 0
E28: - | G28: = | H28: 0
E29: - | G29: = | H29: 0 | L29: PAYMENT METHODS
E30: - | G30: = | H30: 0 | L30: Commuter Checks (Vouchers)=
E31: - | G31: = | H31: 0 | M31: Cash=
B32: Total Non-Commute Mileages All Vans | H32: =SUM(H22:H31) -> 0 | O32: Checks=
M33: Online Payment Site=
A34: DEDUCTIONS | M34: TOTAL AMOUNT PAID= | P34: =SUM(P30:P33) -> 0
C35: (Number of Credits) | M35: Difference= | P35: =(P34-P26) -> -276
F36: (Credit Value | H36: (Credit
F37: per Rider) | H37: Deduction)
A38: *U-Pass Credit(up to $70) | F38: 0 | G38: = | H38: =(E38*F38) -> 0
A39: *Orca Passport | F39: 0 | G39: = | H39: 0 | K39: 1 | L39: ='Ridership Report'!K13 -> 0 | M39: 8 | N39: ='Ridership Report'!K20 -> 0 | O39: 15 | P39: ='Ridership Report'!K27 -> 0
F40: 0 | G40: = | H40: 0 | K40: 2 | L40: ='Ridership Report'!K14 -> 0 | M40: 9 | N40: ='Ridership Report'!K21 -> 0 | O40: 16 | P40: ='Ridership Report'!K28 -> 0
A41: **Approved KT Credits/Expenditures | G41: = | H41: 0 | K41: 3 | L41: ='Ridership Report'!K15 -> 0 | M41: 10 | N41: ='Ridership Report'!K22 -> 0 | O41: 17 | P41: ='Ridership Report'!K30 -> 0
A42: Bank Account Credit | F42: 5 | G42: = | H42: 0 | K42: 4 | L42: ='Ridership Report'!K16 -> 0 | M42: 11 | N42: ='Ridership Report'!K23 -> 0
A43: Van Wash Credit | F43: 10 | G43: = | H43: 0 | K43: 5 | L43: ='Ridership Report'!K17 -> 0 | M43: 12 | N43: ='Ridership Report'!K24 -> 0
D44: TOTAL DEDUCTION | H44: =SUM(H37:H43) -> 0 | K44: 6 | L44: ='Ridership Report'!K18 -> 0 | M44: 13 | N44: ='Ridership Report'!K25 -> 0
K45: 7 | L45: ='Ridership Report'!K19 -> 0 | M45: 14 | N45: ='Ridership Report'!K26 -> 0
A47: Aug'18 | C47: 7-psg | D47: =(H19-F32) -> 0 | F47: =(H19-H32) -> 0 | H47: =N14-N12 -> 0
A48: Sept'18 | C48: 8-psg
A49: Oct'18 | C49: 11-psg
A50: Nov'18 | C50: 14-psg
A51: Dec'18 | F51: =I4 -> 0
A52: Jan'19
A53: Feb'19
A54: Mar'19 | C54: FARE | D54: =IF(P15="5day",INDEX($D$66:$E$102,MATCH(I59,$C$66:$C$102,1),MATCH(G59,$D$65:$E$65,0)), IF(P15="4day",INDEX($F$66:$G$102,MATCH(I59,$C$66:$C$102,1),MATCH(G59,$F$65:$G$65,0)), IF(P15="7day",INDEX($H$66:$I$102,MATCH(I59,$C$66:$C$102,1),MATCH(G$59,$H$65:I65,0)), IF(P15="6day",INDEX($J$66:$K$102,MATCH(I59,$C$66:$C$102,1),MATCH(G$59,$J$65:K65,0)),"")))) -> 276
A55: Apr'19
A56: May'19
A57: Jun'19 | C57: RTM | D57: 35 | G57: 2
I58: Ceiling
G59: =IF(G57=1,"Small",IF(G57=2,"Small",IF(G57=3,"Large",IF(G57=4,"Large")))) -> Small | I59: =CEILING(N9,5) -> 20
C60: SIZE | D60: SMALL
D64: 5day | F64: 4day | H64: 7day | J64: 6day
C65: RTM | D65: SMALL | E65: LARGE | F65: SMALL | G65: LARGE | H65: SMALL | I65: LARGE | J65: SMALL | K65: LARGE
C66: 20 | D66: 276 | E66: 396 | F66: =(D66/21)*16 -> 210.2857143 | G66: =(E66/21)*16 -> 301.7142857 | H66: =(D66/21)*30 -> 394.2857143 | I66: =(E66/21)*30 -> 565.7142857 | J66: =(D66/21)*24 -> 315.4285714 | K66: =(E66/21)*24 -> 452.5714286
C67: 25 | D67: 309 | E67: 434 | F67: =(D67/21)*16 -> 235.4285714 | G67: 330.6666667 | H67: =(D67/21)*30 -> 441.4285714 | I67: =(E67/21)*30 -> 620 | J67: =(D67/21)*24 -> 353.1428571 | K67: =(E67/21)*24 -> 496
C68: 30 | D68: 321 | E68: 472 | F68: 244.5714286 | G68: 359.6190476 | H68: 458.5714286 | I68: 674.2857143 | J68: 366.8571429 | K68: 539.4285714
C69: 35 | D69: 375 | E69: 510 | F69: 285.7142857 | G69: 388.5714286 | H69: 535.7142857 | I69: 728.5714286 | J69: 428.5714286 | K69: 582.8571429
C70: 40 | D70: 428 | E70: 548 | F70: 326.0952381 | G70: 417.5238095 | H70: 611.4285714 | I70: 782.8571429 | J70: 489.1428571 | K70: 626.2857143
C71: 45 | D71: 482 | E71: 587 | F71: 367.2380952 | G71: 447.2380952 | H71: 688.5714286 | I71: 838.5714286 | J71: 550.8571429 | K71: 670.8571429
C72: 50 | D72: 536 | E72: 625 | F72: 408.3809524 | G72: 476.1904762 | H72: 765.7142857 | I72: 892.8571429 | J72: 612.5714286 | K72: 714.2857143
C73: 55 | D73: 589 | E73: 648 | F73: 448.7619048 | G73: 493.7142857 | H73: 841.4285714 | I73: 925.7142857 | J73: 673.1428571 | K73: 740.5714286
C74: 60 | D74: 643 | E74: 707 | F74: 489.9047619 | G74: 538.6666667 | H74: 918.5714286 | I74: 1010 | J74: 734.8571429 | K74: 808
C75: 65 | D75: 696 | E75: 766 | F75: 530.2857143 | G75: 583.6190476 | H75: 994.2857143 | I75: 1094.285714 | J75: 795.4285714 | K75: 875.4285714
C76: 70 | D76: 750 | E76: 825 | F76: 571.4285714 | G76: 628.5714286 | H76: 1071.428571 | I76: 1178.571429 | J76: 857.1428571 | K76: 942.8571429
C77: 75 | D77: 803 | E77: 884 | F77: 611.8095238 | G77: 673.5238095 | H77: 1147.142857 | I77: 1262.857143 | J77: 917.7142857 | K77: 1010.285714
C78: 80 | D78: 857 | E78: 942 | F78: 652.952381 | G78: 717.7142857 | H78: 1224.285714 | I78: 1345.714286 | J78: 979.4285714 | K78: 1076.571429
C79: 85 | D79: 910 | E79: 1001 | F79: 693.3333333 | G79: 762.6666667 | H79: 1300 | I79: 1430 | J79: 1040 | K79: 1144
C80: 90 | D80: 964 | E80: 1060 | F80: 734.4761905 | G80: 807.6190476 | H80: 1377.142857 | I80: 1514.285714 | J80: 1101.714286 | K80: 1211.428571
C81: 95 | D81: 1017 | E81: 1119 | F81: 774.8571429 | G81: 852.5714286 | H81: 1452.857143 | I81: 1598.571429 | J81: 1162.285714 | K81: 1278.857143
C82: 100 | D82: 1071 | E82: 1178 | F82: 816 | G82: 897.5238095 | H82: 1530 | I82: 1682.857143 | J82: 1224 | K82: 1346.285714
C83: 105 | D83: 1125 | E83: 1237 | F83: =(D83/21)*16 -> 857.1428571 | G83: 942.4761905 | H83: =(D83/21)*30 -> 1607.142857 | I83: 1767.142857 | J83: 1285.714286 | K83: 1413.714286
C84: 110 | D84: 1178 | E84: 1296 | F84: 897.5238095 | G84: 987.4285714 | H84: 1682.857143 | I84: 1851.428571 | J84: 1346.285714 | K84: 1481.142857
C85: 115 | D85: 1232 | E85: 1355 | F85: 938.6666667 | G85: 1032.380952 | H85: 1760 | I85: 1935.714286 | J85: 1408 | K85: 1548.571429
C86: 120 | D86: 1285 | E86: 1414 | F86: 979.047619 | G86: 1077.333333 | H86: 1835.714286 | I86: 2020 | J86: 1468.571429 | K86: 1616
C87: 125 | D87: 1339 | E87: 1473 | F87: 1020.190476 | G87: 1122.285714 | H87: 1912.857143 | I87: 2104.285714 | J87: 1530.285714 | K87: 1683.428571
C88: 130 | D88: 1392 | E88: 1532 | F88: 1060.571429 | G88: 1167.238095 | H88: 1988.571429 | I88: 2188.571429 | J88: 1590.857143 | K88: 1750.857143
C89: 135 | D89: 1446 | E89: 1590 | F89: 1101.714286 | G89: 1211.428571 | H89: 2065.714286 | I89: 2271.428571 | J89: 1652.571429 | K89: 1817.142857
C90: 140 | D90: 1499 | E90: 1649 | F90: 1142.095238 | G90: 1256.380952 | H90: 2141.428571 | I90: 2355.714286 | J90: 1713.142857 | K90: 1884.571429
C91: 145 | D91: 1553 | E91: 1708 | F91: 1183.238095 | G91: 1301.333333 | H91: 2218.571429 | I91: 2440 | J91: 1774.857143 | K91: 1952
C92: 150 | D92: 1607 | E92: 1767 | F92: 1224.380952 | G92: 1346.285714 | H92: 2295.714286 | I92: 2524.285714 | J92: 1836.571429 | K92: 2019.428571
C93: 155 | D93: 1660 | E93: 1826 | F93: 1264.761905 | G93: 1391.238095 | H93: 2371.428571 | I93: 2608.571429 | J93: 1897.142857 | K93: 2086.857143
C94: 160 | D94: 1714 | E94: 1885 | F94: 1305.904762 | G94: 1436.190476 | H94: 2448.571429 | I94: 2692.857143 | J94: 1958.857143 | K94: 2154.285714
C95: 165 | D95: 1767 | E95: 1944 | F95: 1346.285714 | G95: 1481.142857 | H95: 2524.285714 | I95: 2777.142857 | J95: 2019.428571 | K95: 2221.714286
C96: 170 | D96: 1821 | E96: 2003 | F96: 1387.428571 | G96: 1526.095238 | H96: 2601.428571 | I96: 2861.428571 | J96: 2081.142857 | K96: 2289.142857
C97: 175 | D97: 1874 | E97: 2062 | F97: 1427.809524 | G97: 1571.047619 | H97: 2677.142857 | I97: 2945.714286 | J97: 2141.714286 | K97: 2356.571429
C98: 180 | D98: 1928 | E98: 2121 | F98: 1468.952381 | G98: 1616 | H98: 2754.285714 | I98: 3030 | J98: 2203.428571 | K98: 2424
C99: 185 | D99: 1981 | E99: 2179 | F99: 1509.333333 | G99: 1660.190476 | H99: 2830 | I99: 3112.857143 | J99: 2264 | K99: 2490.285714
C100: 190 | D100: 2035 | E100: 2238 | F100: 1550.47619 | G100: 1705.142857 | H100: 2907.142857 | I100: 3197.142857 | J100: 2325.714286 | K100: 2557.714286
C101: 195 | D101: 2088 | E101: 2297 | F101: 1590.857143 | G101: 1750.095238 | H101: 2982.857143 | I101: 3281.428571 | J101: 2386.285714 | K101: 2625.142857
C102: 200 | D102: 2142 | E102: 2356 | F102: 1632 | G102: 1795.047619 | H102: 3060 | I102: 3365.714286 | J102: 2448 | K102: 2692.571429
C122: DROP DOWN OPTIONS
C123: SMALL
C124: LARGE
C126: 5day
C127: 4day
C128: 7day
C129: 6day

Sheet VehicleStatus
A1: Please call Kitsap Transit's Maintenance Department at 360-478-6221 with any immediate concerns.
A2: KITSAP TRANSIT VEHICLE INSPECTION REPORT
A4: Van #: | D4: Date:
A6: Prepared by:
C10: Parking brake holds on incline
C11: Headlights operate and are aimed properly
C12: Stop, tail and signal lights are operational
C13: Windshield/windows free of chips & cracks
C14: Windshield wipers/washers are in good condition
C15: Tires properly inflated, tread depth over 1/16"
C16: Tires with no breaks, cuts or bulges/wearing evenly
C17: Heater, defroster and air conditioner OK
C18: All safety belts operation/in good condition
C19: All belts and hoses free of cracks/bulges
C20: Horn operational
C21: Exhaust system & muffler OK
C22: Free of vibration when steering
C23: Gauges registering properly
C24: Proper coolant/antifreeze level
C25: Proper engine oil level
C26: Free of unusual noises
C27: All emergency equipment in van
C28: Free of exterior body damage
C29: Free of fluid leaks under van
C30: Upon braking, van stops in straight line
C31: Explain each "No" response:

Sheet Vanpool Fares
A1: General Vanpool Fares
A3: 7 & 8-Passenger "Small Vans" | D3: 11 & 14-passenger "Large Vans"
A4: Trip | B4: New | D4: Trip | E4: New
A5: Miles | B5: Rate | D5: Miles | E5: Rate
A6: 20 | B6: 276 | D6: 20 | E6: 396
A7: 25 | B7: 309 | D7: 25 | E7: 434
A8: 30 | B8: 321 | D8: 30 | E8: 472
A9: 35 | B9: 375 | D9: 35 | E9: 510
A10: 40 | B10: 428 | D10: 40 | E10: 548
A11: 45 | B11: 482 | D11: 45 | E11: 587
A12: 50 | B12: 536 | D12: 50 | E12: 625
A13: 55 | B13: 589 | D13: 55 | E13: 648
A14: 60 | B14: 643 | D14: 60 | E14: 707
A15: 65 | B15: 696 | D15: 65 | E15: 766
A16: 70 | B16: 750 | D16: 70 | E16: 825
A17: 75 | B17: 803 | D17: 75 | E17: 884
A18: 80 | B18: 857 | D18: 80 | E18: 942
A19: 85 | B19: 910 | D19: 85 | E19: 1001
A20: 90 | B20: 964 | D20: 90 | E20: 1060
A21: 95 | B21: 1017 | D21: 95 | E21: 1119
A22: 100 | B22: 1071 | D22: 100 | E22: 1178
A23: 105 | B23: 1125 | D23: 105 | E23: 1237
A24: 110 | B24: 1178 | D24: 110 | E24: 1296
A25: 115 | B25: 1232 | D25: 115 | E25: 1355
A26: 120 | B26: 1285 | D26: 120 | E26: 1414
A27: 125 | B27: 1339 | D27: 125 | E27: 1473
A28: 130 | B28: 1392 | D28: 130 | E28: 1532
A29: 135 | B29: 1446 | D29: 135 | E29: 1590
A30: 140 | B30: 1499 | D30: 140 | E30: 1649
A31: 145 | B31: 1553 | D31: 145 | E31: 1708
A32: 150 | B32: 1607 | D32: 150 | E32: 1767
A33: 155 | B33: 1660 | D33: 155 | E33: 1826
A34: 160 | B34: 1714 | D34: 160 | E34: 1885
A35: 165 | B35: 1767 | D35: 165 | E35: 1944
A36: 170 | B36: 1821 | D36: 170 | E36: 2003
A37: 175 | B37: 1874 | D37: 175 | E37: 2062
A38: 180 | B38: 1928 | D38: 180 | E38: 2121
A39: 185 | B39: 1981 | D39: 185 | E39: 2179
A40: 190 | B40: 2035 | D40: 190 | E40: 2238
A41: 195 | B41: 2088 | D41: 195 | E41: 2297
A42: 200 | B42: 2142 | D42: 200 | E42: 2356

Sheet ExampleRidership Report
AM2: CK222
F5: Mickey Mouse | AA5: 123
C9: 596 | L9: =C9/COUNTA(B13:J28) -> 85.14285714 | T9: =IF(P60=1,C9/8,IF(P60=2,C9/11,IF(P60=3,C9/14))) -> 74.5
B12: Name | I12: Pass #'s | L12: Totals | N12: 1 | O12: 2 | P12: 3 | Q12: 4 | R12: 5 | S12: 6 | T12: 7 | U12: 8 | V12: 9 | W12: 10 | X12: 11 | Y12: 12 | Z12: 13 | AA12: 14 | AB12: 15 | AC12: 16 | AD12: 17 | AE12: 18 | AF12: 19 | AG12: 20 | AH12: 21 | AI12: 22 | AJ12: 23 | AK12: 24 | AL12: 25 | AM12: 26 | AN12: 27 | AO12: 28 | AP12: 29 | AQ12: 30 | AR12: 31 | AS12: *
A13: 1 | B13: Mickey Mouse | L13: =SUM(C55:L55) -> 43 | N13: D | O13: HD | P13: HD | Q13: HD | R13: HD | U13: X | V13: X | W13: X | X13: X | Y13: X | AB13: HD | AC13: HD | AD13: HD | AE13: HD | AF13: HD | AI13: DR | AJ13: DR | AK13: DR | AL13: DR | AM13: DR | AO13: X | AP13: X | AS13: =(COUNTIF(N13:AR13,"DR")*2) + COUNTIF(N13:AR13,"D") + COUNTIF(N13:AR13,"HD") -> 20
A14: 2 | B14: Donald Duck | L14: 34 | N14: X | O14: X | P14: X | Q14: X | R14: X | U14: \ | V14: \ | W14: \ | X14: \ | Y14: \ | AB14: \ | AC14: \ | AD14: \ | AE14: \ | AF14: \ | AI14: X | AJ14: X | AK14: X | AL14: X | AM14: X | AO14: X | AP14: X | AS14: =(COUNTIF(N14:AR14,"DR")*2) + COUNTIF(N14:AR14,"D") + COUNTIF(N14:AR14,"HD") -> 0
A15: 3 | B15: Minnie Mouse | K15: UPASS | L15: 41 | N15: D | O15: HD | P15: HD | Q15: HD | R15: HD | U15: DR | V15: DR | W15: DR | X15: DR | Y15: DR | AB15: HD | AC15: HD | AD15: HD | AE15: HD | AF15: HD | AI15: X | AJ15: X | AK15: X | AL15: X | AM15: X | AO15: X | AP15: L | AS15: 20
A16: 4 | B16: Goofy Dog | L16: 38 | N16: L | O16: L | P16: L | Q16: X | R16: X | U16: X | V16: X | W16: X | X16: X | Y16: X | AB16: X | AC16: X | AD16: X | AE16: X | AF16: X | AI16: X | AJ16: X | AK16: X | AL16: X | AM16: X | AO16: X | AP16: X | AS16: 0
A17: 5 | B17: Daisey Duck | L17: 33 | N17: X | O17: X | P17: X | Q17: X | R17: X | U17: X | V17: X | W17: X | X17: X | Y17: X | AB17: \ | AC17: \ | AD17: \ | AE17: \ | AF17: \ | AI17: \ | AJ17: \ | AK17: \ | AL17: \ | AM17: X | AO17: \ | AP17: \ | AS17: 0
A18: 6 | B18: Porky Pig | L18: 36 | N18: X | O18: X | P18: X | Q18: X | R18: X | U18: X | V18: X | W18: X | X18: X | Y18: X | AB18: X | AC18: X | AD18: X | AE18: L | AF18: L | AI18: L | AJ18: L | AK18: X | AL18: X | AM18: X | AO18: X | AP18: X | AS18: 0
A19: 7 | B19: Snow White | K19: S99857526 | L19: 44 | N19: X | O19: X | P19: X | Q19: X | R19: X | U19: X | V19: X | W19: X | X19: X | Y19: X | AB19: X | AC19: X | AD19: X | AE19: X | AF19: X | AI19: X | AJ19: X | AK19: X | AL19: X | AM19: X | AO19: X | AP19: X | AS19: 0
A20: 8 | L20: 0 | AS20: 0
A21: 9 | L21: 0 | AS21: 0
A22: 10 | L22: 0 | AS22: 0
A23: 11 | L23: 0 | AS23: 0
A24: 12 | L24: 0 | AS24: 0
A25: 13 | L25: 0 | AS25: 0
A26: 14 | L26: 0 | AS26: 0
A27: 15 | L27: 0 | AS27: 0
A28: 16 | L28: 0 | AS28: 0
AG31: =SalesReport!H19 -> 0 | AL31: =SUM((T57*2)+T55)+SUM(T61*2)+T59+SUM(T63*2) -> 269
F36: 1) | P36: 2) | Z36: 3) | AJ36: 4)
F38: 5) | P38: 6) | Z38: 7) | AJ38: 8)
F40: 9) | P40: 10) | Z40: 11) | AJ40: 12)
F42: 12) | P42: 14) | Z42: 15) | AJ42: 16)
N53: =COUNTA(N13:N28) -> 7 | O53: =COUNTA(O13:O28) -> 7 | P53: 7 | Q53: 7 | R53: 7 | S53: 0 | T53: 0 | U53: 7 | V53: 7 | W53: 7 | X53: 7 | Y53: 7 | Z53: 0 | AA53: 0 | AB53: 7 | AC53: 7 | AD53: 7 | AE53: 7 | AF53: 7 | AG53: 0 | AH53: 0 | AI53: 7 | AJ53: 7 | AK53: 7 | AL53: 7 | AM53: 7 | AN53: 0 | AO53: 7 | AP53: 7 | AQ53: 0 | AR53: 0
C54: d | E54: dr | G54: hd | I54: \ | K54: x
C55: =COUNTIF(N13:AR13,"d") -> 1 | E55: =COUNTIF(N13:AR13,"dr")*2 -> 10 | G55: =COUNTIF(N13:AR13,"hd")*2 -> 18 | I55: =COUNTIF(N13:AR13,"\") -> 0 | K55: =COUNTIF(N13:AR13,"x")*2 -> 14 | P55: 8-psg | T55: =COUNTIF(N13:AR28,"\") -> 21 | X55: =COUNTA(N13:AR13) -> 22 | AG55: =COUNTIF(N13:AR13,"\") -> 0 | AK55: FALSE | AM55: FALSE | AN55: FALSE | AQ55: Dec'11
C56: =COUNTIF(N14:AR14,"d") -> 0 | E56: =COUNTIF(N14:AR14,"dr")*2 -> 0 | G56: =COUNTIF(N14:AR14,"hd")*2 -> 0 | I56: =COUNTIF(N14:AR14,"\") -> 10 | K56: =COUNTIF(N14:AR14,"x")*2 -> 24 | P56: 11-psg | X56: =COUNTA(N14:AR14) -> 22 | AK56: FALSE | AM56: FALSE | AQ56: Jan'12
C57: 1 | E57: 10 | G57: 18 | I57: 0 | K57: 12 | P57: 14-psg | T57: =COUNTIF(N13:AR28,"X") -> 95 | X57: 22 | AK57: FALSE | AM57: FALSE | AQ57: Feb'12
C58: 0 | E58: 0 | G58: 0 | I58: 0 | K58: 38 | X58: 22 | AA58: =COUNTIF(N53:AR53,"<>0") -> 22 | AK58: FALSE | AM58: FALSE | AQ58: Mar'12
C59: 0 | E59: 0 | G59: 0 | I59: 11 | K59: 22 | T59: =COUNTIF(N13:AR28,"D") -> 2 | X59: 22 | AK59: FALSE | AM59: FALSE | AQ59: Apr'12
C60: 0 | E60: 0 | G60: 0 | I60: 0 | K60: 36 | P60: 1 | X60: 22 | AK60: FALSE | AM60: FALSE | AQ60: May'12
C61: 0 | E61: 0 | G61: 0 | I61: 0 | K61: 44 | T61: =COUNTIF(N13:AR28,"DR") -> 10 | X61: 22 | AK61: FALSE | AM61: FALSE | AQ61: Jun'12
C62: 0 | E62: 0 | G62: 0 | I62: 0 | K62: 0 | X62: 0 | AK62: FALSE | AM62: FALSE | AQ62: Jul'12
C63: 0 | E63: 0 | G63: 0 | I63: 0 | K63: 0 | T63: =COUNTIF(N13:AR28,"HD") -> 18 | X63: 0 | AK63: FALSE | AM63: FALSE | AQ63: Aug'12
C64: 0 | E64: 0 | G64: 0 | I64: 0 | K64: 0 | X64: 0 | AK64: FALSE | AM64: FALSE | AQ64: Sep'12
C65: 0 | E65: 0 | G65: 0 | I65: 0 | K65: 0 | T65: =COUNTIF(N13:AR28,"HD") -> 18 | X65: 0 | AK65: FALSE | AM65: FALSE | AQ65: Oct'12
C66: 0 | E66: 0 | G66: 0 | I66: 0 | K66: 0 | X66: 0 | AK66: FALSE | AM66: FALSE | AQ66: Nov'12
C67: 0 | E67: 0 | G67: 0 | I67: 0 | K67: 0 | X67: 0 | AK67: FALSE | AM67: FALSE | AQ67: Dec'12
C68: 0 | E68: 0 | G68: 0 | I68: 0 | K68: 0 | X68: 0 | AK68: FALSE | AM68: FALSE
C69: 0 | E69: 0 | G69: 0 | I69: 0 | K69: 0 | X69: 0 | AK69: FALSE | AM69: FALSE
C70: 0 | E70: 0 | G70: 0 | I70: 0 | K70: 0 | X70: 0 | AK70: FALSE | AM70: FALSE
S72: =IF(P60=1,B9/8,IF(P60=2,B9/11,IF(P60=3,B9/14))) -> 0

Sheet ExampleSalesReport
A1: Revised: 11.5.13 | O1: KT Coordinator
I2: 123 | K2: Narrows Bridge Transponders | O2: Tommy
O3: Dee
C4: Mickey Mouse | L4: CK222 | O4: Cyndi
A7: ACTUAL MILEAGE (Commute mileage with primary or spare van) | J7: CALCULATION FOR ALLOWABLE MILEAGE | P7: TRUE
A8: Van # | B8: Start Date | C8: End Date | D8: End Miles | E8: - | F8: Start Miles | G8: = | H8: Totals
A9: 123 | B9: 2012-03-01 | C9: 2012-03-29 | D9: 50000 | E9: - | F9: 49000 | G9: = | H9: =SUM(D9-F9) -> 1000 | I9: Daily Round Trip Miles (RTM's) | N9: 50
E10: - | G10: = | H10: 0 | J10: Working Days Last Month = | N10: 22
E11: - | G11: = | H11: 0 | J11: Bonus Miles (unplanned deviations only)
E12: - | G12: = | H12: 0 | J12: TOTAL ALLOWABLE MILES = | N12: =(N9*N10)+N11 -> 1100
E13: - | G13: = | H13: 0
E14: - | G14: = | H14: 0 | K14: TOTAL ACTUAL MILES= | N14: =TRANSPOSE(F47) -> 980
E15: - | G15: = | H15: 0 | K15: Miles Over Allowable= | N15: =IF(H47<0,"",H47) ->  | P15: 5day
E16: - | G16: = | H16: 0 | I16: CHARGES FOR MILES OVER ALLOWABLE= | N16: =IF(H47>0,N15*0.555,"") -> 
E17: - | G17: = | H17: 0
E18: - | G18: = | H18: 0
D19: Total Actual Mileages All Vans | H19: =SUM(H9:H18) -> 1000 | N19: CHARGES
B20: NON-COMMUTE MILEAGE (trade-outs, etc.) | I20: VAN WASH | L20: Transponder Surcharge ($60) = | P20: =IF(P7, 89, 0) -> 89
A21: Van # | B21: Start Date | C21: End Date | D21: End Miles | E21: - | F21: Start Miles | G21: = | H21: Totals | I21: Date | J21: Location | M21: Monthly Fixed Fare= | P21: =D54+P20 -> 625
A22: 123 | B22: 2012-03-15 | C22: 2012-03-15 | D22: 49600 | E22: - | F22: 49580 | G22: = | H22: =SUM(D22-F22) -> 20 | I22: 2012-03-24 | J22: Mickey's House | L22: Miles Over Allowable Charge= | P22: =TRANSPOSE(N16) -> 
E23: - | G23: = | H23: 0 | L23: Late Fee (if postmarked after the 7th)=
E24: - | G24: = | H24: 0 | M24: TOTAL CHARGES= | P24: =SUM(P21:P23) -> 625
E25: - | G25: = | H25: 0 | I25: Comments | M25: TOTAL DEDUCTIONS= | P25: =TRANSPOSE(H44) -> 170.14
E26: - | G26: = | H26: 0 | L26: TOTAL AMOUNT DUE= | P26: =(P24-H44) -> 454.86
E27: - | G27: = | H27: 0
E28: - | G28: = | H28: 0
E29: - | G29: = | H29: 0 | L29: PAYMENT METHODS
E30: - | G30: = | H30: 0 | L30: Commuter Checks (Vouchers)= | P30: 225
E31: - | G31: = | H31: 0 | M31: Cash=
B32: Total Non-Commute Mileages All Vans | H32: =SUM(H22:H31) -> 20 | O32: Checks= | P32: 100.86
M33: Online Payment Site= | P33: 129
A34: DEDUCTIONS | M34: TOTAL AMOUNT PAID= | P34: =SUM(P30:P33) -> 454.86
C35: (Number of Credits) | F35: (Credit Value | M35: Difference= | P35: =(P34-P26) -> 0
F36: per Rider) | H36: (Credit Deduction)
A37: *U-Pass Credit(up to $70) | E37: 1 | F37: 70 | G37: = | H37: =(E37*F37) -> 70
A38: *Orca Passport | E38: 1 | F38: 85.14 | G38: = | H38: 85.14
F39: 0 | G39: = | H39: 0 | K39: 1 | L39: ='ExampleRidership Report'!K13 -> 0
A40: *Federal Flex Pass | F40: 0 | G40: = | H40: 0 | K40: 2 | L40: ='ExampleRidership Report'!K14 -> 0 | M40: 8 | N40: ='ExampleRidership Report'!K20 -> 0 | O40: 15 | P40: ='Ridership Report'!K27 -> 0
A41: **Approved KT Credits/Expenditures | F41: 0 | G41: = | H41: 0 | K41: 3 | L41: ='ExampleRidership Report'!K15 -> UPASS | M41: 9 | N41: ='ExampleRidership Report'!K21 -> 0 | O41: 16 | P41: ='Ridership Report'!K28 -> 0
A42: Bank Account Fee | E42: 1 | F42: 5 | G42: = | H42: 5 | K42: 4 | L42: ='ExampleRidership Report'!K16 -> 0 | M42: 10 | N42: ='ExampleRidership Report'!K22 -> 0 | O42: 17 | P42: ='Ridership Report'!K37 -> 0
A43: Van Wash Expense | E43: 1 | F43: 10 | G43: = | H43: 10 | K43: 5 | L43: ='ExampleRidership Report'!K17 -> 0 | M43: 11 | N43: ='ExampleRidership Report'!K23 -> 0
D44: TOTAL DEDUCTION | H44: =SUM(H37:H43) -> 170.14 | K44: 6 | L44: ='ExampleRidership Report'!K18 -> 0 | M44: 12 | N44: ='ExampleRidership Report'!K24 -> 0
K45: 7 | L45: ='ExampleRidership Report'!K19 -> S99857526 | M45: 13 | N45: ='ExampleRidership Report'!K25 -> 0
M46: 14 | N46: ='ExampleRidership Report'!K26 -> 0
A47: Dec'11 | C47: 8-psg | D47: =(H19-F32) -> 1000 | F47: =(H19-H32) -> 980 | H47: =N14-N12 -> -120
A48: Jan'12 | C48: 11-psg
A49: Feb'12 | C49: 14-psg
A50: Mar'12
A51: Apr'12 | F51: =I4 -> 0
A52: May'12
A53: Jun'12
A54: Jul'12 | C54: FARE | D54: =IF(P15="5day",INDEX($D$66:$E$102,MATCH(I59,$C$66:$C$102,1),MATCH(G59,$D$65:$E$65,0)),IF(P15="4day",INDEX($F$66:$G$102,MATCH(I59,$C$66:$C$102,1),MATCH(G59,$F$65:$G$65,0)),IF(P15="7day",INDEX($H$67:$I$103,MATCH(I59,$C$66:$C$102,1),MATCH($G$59,$H$66:I66,0)),""))) -> 536
A55: Aug'12
A56: Sep'12
A57: Oct'12 | C57: RTM | D57: 35 | G57: 1
A58: Nov'12 | I58: Ceiling
A59: Dec'12 | G59: =IF(G57=1,"Small",IF(G57=2,"LARGE",IF(G57=3,"Large"))) -> Small | I59: =CEILING(N9,5) -> 50
C60: SIZE | D60: SMALL
C62: WORK WEEK | D62: 5day
D64: 5day | F64: 4day | H64: 7day
C65: RTM | D65: SMALL | E65: LARGE | F65: SMALL | G65: LARGE | H65: SMALL
C66: 20 | D66: 276 | E66: 396 | F66: =(D66/21)*16 -> 210.2857143 | G66: =(E66/21)*16 -> 301.7142857 | H66: =(D66/21)*30 -> 394.2857143 | I66: LARGE
C67: 25 | D67: 309 | E67: 434 | F67: =(D67/21)*16 -> 235.4285714 | G67: 330.6666667 | H67: =(D67/21)*30 -> 441.4285714 | I67: =(E66/21)*30 -> 565.7142857
C68: 30 | D68: 321 | E68: 472 | F68: 244.5714286 | G68: 359.6190476 | H68: 458.5714286 | I68: 620
C69: 35 | D69: 375 | E69: 510 | F69: 285.7142857 | G69: 388.5714286 | H69: 535.7142857 | I69: 674.2857143
C70: 40 | D70: 428 | E70: 548 | F70: 326.0952381 | G70: 417.5238095 | H70: 611.4285714 | I70: 728.5714286
C71: 45 | D71: 482 | E71: 587 | F71: 367.2380952 | G71: 447.2380952 | H71: 688.5714286 | I71: 782.8571429
C72: 50 | D72: 536 | E72: 625 | F72: 408.3809524 | G72: 476.1904762 | H72: 765.7142857 | I72: 838.5714286
C73: 55 | D73: 589 | E73: 648 | F73: 448.7619048 | G73: 493.7142857 | H73: 841.4285714 | I73: 892.8571429
C74: 60 | D74: 643 | E74: 707 | F74: 489.9047619 | G74: 538.6666667 | H74: 918.5714286 | I74: 925.7142857
C75: 65 | D75: 696 | E75: 766 | F75: 530.2857143 | G75: 583.6190476 | H75: 994.2857143 | I75: 1010
C76: 70 | D76: 750 | E76: 825 | F76: 571.4285714 | G76: 628.5714286 | H76: 1071.428571 | I76: 1094.285714
C77: 75 | D77: 803 | E77: 884 | F77: 611.8095238 | G77: 673.5238095 | H77: 1147.142857 | I77: 1178.571429
C78: 80 | D78: 857 | E78: 942 | F78: 652.952381 | G78: 717.7142857 | H78: 1224.285714 | I78: 1262.857143
C79: 85 | D79: 910 | E79: 1001 | F79: 693.3333333 | G79: 762.6666667 | H79: 1300 | I79: 1345.714286
C80: 90 | D80: 964 | E80: 1060 | F80: 734.4761905 | G80: 807.6190476 | H80: 1377.142857 | I80: 1430
C81: 95 | D81: 1017 | E81: 1119 | F81: 774.8571429 | G81: 852.5714286 | H81: 1452.857143 | I81: 1514.285714
C82: 100 | D82: 1071 | E82: 1178 | F82: 816 | G82: 897.5238095 | H82: 1530 | I82: 1598.571429
C83: 105 | D83: 1125 | E83: 1237 | F83: =(D83/21)*16 -> 857.1428571 | G83: 942.4761905 | H83: =(D83/21)*30 -> 1607.142857 | I83: 1682.857143
C84: 110 | D84: 1178 | E84: 1296 | F84: 897.5238095 | G84: 987.4285714 | H84: 1682.857143 | I84: 1767.142857
C85: 115 | D85: 1285 | E85: 1355 | F85: 979.047619 | G85: 1032.380952 | H85: 1835.714286 | I85: 1851.428571
C86: 120 | D86: 1323 | E86: 1414 | F86: 1008 | G86: 1077.333333 | H86: 1890 | I86: 1935.714286
C87: 125 | D87: 1339 | E87: 1473 | F87: 1020.190476 | G87: 1122.285714 | H87: 1912.857143 | I87: 2020
C88: 130 | D88: 1392 | E88: 1532 | F88: 1060.571429 | G88: 1167.238095 | H88: 1988.571429 | I88: 2104.285714
C89: 135 | D89: 1446 | E89: 1590 | F89: 1101.714286 | G89: 1211.428571 | H89: 2065.714286 | I89: 2188.571429
C90: 140 | D90: 1499 | E90: 1649 | F90: 1142.095238 | G90: 1256.380952 | H90: 2141.428571 | I90: 2271.428571
C91: 145 | D91: 1553 | E91: 1708 | F91: 1183.238095 | G91: 1301.333333 | H91: 2218.571429 | I91: 2355.714286
C92: 150 | D92: 1607 | E92: 1767 | F92: 1224.380952 | G92: 1346.285714 | H92: 2295.714286 | I92: 2440
C93: 155 | D93: 1660 | E93: 1826 | F93: 1264.761905 | G93: 1391.238095 | H93: 2371.428571 | I93: 2524.285714
C94: 160 | D94: 1714 | E94: 1885 | F94: 1305.904762 | G94: 1436.190476 | H94: 2448.571429 | I94: 2608.571429
C95: 165 | D95: 1767 | E95: 1944 | F95: 1346.285714 | G95: 1481.142857 | H95: 2524.285714 | I95: 2692.857143
C96: 170 | D96: 1821 | E96: 2003 | F96: 1387.428571 | G96: 1526.095238 | H96: 2601.428571 | I96: 2777.142857
C97: 175 | D97: 1874 | E97: 2062 | F97: 1427.809524 | G97: 1571.047619 | H97: 2677.142857 | I97: 2861.428571
C98: 180 | D98: 1928 | E98: 2121 | F98: 1468.952381 | G98: 1616 | H98: 2754.285714 | I98: 2945.714286
C99: 185 | D99: 1981 | E99: 2179 | F99: 1509.333333 | G99: 1660.190476 | H99: 2830 | I99: 3030
C100: 190 | D100: 2035 | E100: 2238 | F100: 1550.47619 | G100: 1705.142857 | H100: 2907.142857 | I100: 3112.857143
C101: 195 | D101: 2088 | E101: 2297 | F101: 1590.857143 | G101: 1750.095238 | H101: 2982.857143 | I101: 3197.142857
C102: 200 | D102: 2142 | E102: 2356 | F102: 1632 | G102: 1795.047619 | H102: 3060 | I102: 3281.428571
I103: 3365.714286
C122: DROP DOWN OPTIONS
C123: SMALL
C124: LARGE
C126: 5day
C127: 4day
C128: 7day

Sheet ExampleVehicleStatus
A1: Please call Kitsap Transit's Maintenance Department at 360-478-6221 with any immediate concerns.
A2: KITSAP TRANSIT VEHICLE INSPECTION REPORT
A4: Van #: | B4: 123 | D4: Date: | E4: 2012-03-29
A6: Prepared by: | C6: Mickey Mouse | H6: CK222
C10: Parking brake holds on incline
C11: Headlights operate and are aimed properly
C12: Stop, tail and signal lights are operational
C13: Windshield/windows free of chips & cracks
C14: Windshield wipers/washers are in good condition
C15: Tires properly inflated, tread depth over 1/16"
C16: Tires with no breaks, cuts or bulges/wearing evenly
C17: Heater, defroster and air conditioner OK
C18: All safety belts operation/in good condition
C19: All belts and hoses free of cracks/bulges
C20: Horn operational
C21: Exhaust system & muffler OK
C22: No vibration when steering
C23: Gauges registering properly
C24: Proper coolant/antifreeze level
C25: Proper engine oil level
C26: Free of unusual noises
C27: All emergency equipment in van
C28: Free of exterior body damage
C29: Free of fluid leaks under van
C30: Upon braking, van stops in straight line
C31: Explain each "No" response:
B32: Slight dent on right-side, rear panel. Reported to Tommy on January 2012.

Sheet Sheet1 (hidden)
